bitfinex-derivatives/quotes_BTCF0:USTF0_20250905
["timestamp","ask_amount","ask_price","bid_price","bid_amount"]
[1757059505593,0.3608,112960.0,112950.0,0.0408]
[1757059505994,1.21408,112960.0,112950.0,0.0408]
[1757059506293,1.21408,112960.0,112950.0,0.2908]
[1757059506491,1.21408,112960.0,112950.0,0.2918]
[1757059506896,1.21408,112960.0,112950.0,0.2928]
[1757059507583,0.3608,112960.0,112950.0,0.2928]
[1757059507787,0.45238225,112970.0,112960.0,0.0408]
[1757059507987,1.27526225,112970.0,112960.0,0.0408]
[1757059509688,0.45238225,112970.0,112960.0,0.0408]
[1757059509987,0.87405691,112970.0,112960.0,0.2908]
[1757059510598,2.37405691,112970.0,112960.0,0.2908]
[1757059511191,2.37405691,112970.0,112960.0,0.51985464]
[1757059511396,0.02093691,112970.0,112960.0,0.51985464]
[1757059511787,1.52093691,112970.0,112960.0,0.51985464]
[1757059512186,0.02093691,112970.0,112960.0,0.96916764]
[1757059512592,0.02093691,112970.0,112960.0,0.97116764]
[1757059513299,0.02093691,112970.0,112960.0,0.741113]
[1757059513496,1.52087395,112990.0,112980.0,0.0408]
[1757059513701,1.52087395,112990.0,112980.0,0.26985464]
[1757059514199,1.52087395,112990.0,112980.0,0.0408]
[1757059515402,2.11072859,112990.0,112980.0,0.0408]
[1757059515902,2.11172859,112990.0,112980.0,0.0408]
[1757059516404,2.18379842,112990.0,112980.0,0.0408]
[1757059517400,3.03655842,112990.0,112980.0,0.0408]
[1757059518399,3.06006203,112990.0,112980.0,0.0408]
[1757059518603,2.83084739,112990.0,112980.0,0.0408]
[1757059519493,2.39797756,112990.0,112980.0,0.0408]
[1757059519698,2.75877756,112990.0,112980.0,0.0408]
[1757059520299,2.39797756,112990.0,112980.0,0.0408]
[1757059520498,2.75877756,112990.0,112980.0,0.0408]
[1757059521199,2.39797756,112990.0,112980.0,0.0408]
[1757059521404,1.54537756,112990.0,112980.0,0.0408]
[1757059522109,1.54437756,112990.0,112980.0,0.0408]
[1757059522310,1.54437756,112990.0,112980.0,0.0418]
[1757059522511,1.90517756,112990.0,112980.0,0.0418]
[1757059523512,2.75729756,112990.0,112980.0,0.0418]
[1757059523809,1.90517756,112990.0,112980.0,0.0418]
[1757059524009,2.75729756,112990.0,112980.0,0.0418]
[1757059525307,2.75829756,112990.0,112980.0,0.0418]
[1757059525507,3.01714778,112990.0,112980.0,0.0408]
[1757059525701,3.01714778,112990.0,112980.0,0.29865022]
[1757059525907,2.16502778,112990.0,112980.0,0.29865022]
[1757059526307,2.16502778,112990.0,112980.0,0.0408]
[1757059526615,2.16502778,112990.0,112980.0,0.29865022]
[1757059527014,2.16402778,112990.0,112980.0,0.29865022]
[1757059527416,2.16402778,112990.0,112980.0,0.0408]
[1757059527714,2.16402778,112990.0,112980.0,0.29865022]
[1757059528610,1.90617756,112990.0,112980.0,0.29865022]
[1757059528810,2.16502778,112990.0,112980.0,0.29865022]
[1757059529010,1.54637756,112990.0,112980.0,0.1292973]
[1757059529210,1.54637756,112990.0,112980.0,0.29865022]
[1757059530410,1.54537756,112990.0,112980.0,0.29865022]
[1757059531713,0.02187395,112990.0,112980.0,1.25579774]
[1757059532010,0.02087395,112990.0,112980.0,1.25579774]
[1757059532218,0.02087395,112990.0,112980.0,2.11700843]
[1757059533418,0.02087395,112990.0,112980.0,2.01974044]
[1757059533625,0.02087395,112990.0,112980.0,1.50404]
[1757059533820,0.02087395,112990.0,112980.0,1.76189022]
[1757059534120,0.02087395,112990.0,112980.0,1.50404]
[1757059534322,0.02087395,112990.0,112980.0,0.91045022]
[1757059534621,0.02087395,112990.0,112980.0,1.76169022]
[1757059536327,0.02087395,112990.0,112980.0,1.85018752]
[1757059536819,0.02087395,112990.0,112980.0,1.5923373]
[1757059537118,0.02087395,112990.0,112980.0,1.85018752]
[1757059537628,0.02087395,112990.0,112980.0,2.10803774]
[1757059537924,0.02087395,112990.0,112980.0,2.10779774]
[1757059539923,0.02087395,112990.0,112980.0,1.5920973]
[1757059540123,0.02091395,112990.0,112980.0,2.10779774]
[1757059547436,0.02091395,112990.0,112980.0,2.19259774]
[1757059547946,0.02091395,112990.0,112980.0,2.19171774]
[1757059548539,0.02091395,112990.0,112980.0,1.93386752]
[1757059549235,0.02091395,112990.0,112980.0,2.19171774]
[1757059549448,0.02091395,112990.0,112980.0,1.94171774]
[1757059553439,0.02091395,112990.0,112980.0,1.85691774]
[1757059554847,0.02091395,112990.0,112980.0,1.3412173]
[1757059555041,0.02091395,112990.0,112980.0,1.85691774]
[1757059555238,0.02091395,112990.0,112980.0,1.3412173]
[1757059555440,0.02091395,112990.0,112980.0,1.85691774]
[1757059555648,0.02091395,112990.0,112980.0,1.00679774]
[1757059555841,0.02091395,112990.0,112980.0,1.85631774]
[1757059556159,0.02091395,112990.0,112980.0,1.3406173]
[1757059556358,0.02091395,112990.0,112980.0,1.85631774]
[1757059559648,0.00553395,112990.0,112980.0,1.85631774]
[1757059559854,0.02097395,113000.0,112990.0,0.1266296]
[1757059560054,0.02087395,113000.0,112990.0,0.83007982]
[1757059560567,0.0001,113010.0,113000.0,0.1266218]
[1757059560862,1.90500173,113020.0,113010.0,0.126614]
[1757059561053,1.92853313,113020.0,113010.0,0.38446422]
[1757059561453,1.93715344,113020.0,113010.0,0.126614]
[1757059561653,1.93715344,113020.0,113010.0,0.29599022]
[1757059561963,1.92853313,113020.0,113010.0,0.38446422]
[1757059562160,1.93153313,113020.0,113010.0,0.38446422]
[1757059562360,2.18938335,113020.0,113010.0,0.38446422]
[1757059562560,2.18938335,113020.0,113010.0,0.29599022]
[1757059562862,2.18638335,113020.0,113010.0,0.29599022]
[1757059563855,2.18738335,113020.0,113010.0,0.29599022]
[1757059564561,2.18738335,113020.0,113010.0,0.03814]
[1757059564761,2.18738335,113020.0,113010.0,0.29599022]
[1757059564962,2.16375195,113020.0,113010.0,0.29599022]
[1757059565663,2.17276603,113020.0,113010.0,0.29599022]
[1757059568270,1.91491581,113020.0,113010.0,0.29599022]
[1757059568567,2.17276603,113020.0,113010.0,0.29599022]
[1757059568964,1.54510173,113020.0,113010.0,0.29599022]
[1757059569173,1.80295195,113020.0,113010.0,0.29599022]
[1757059569468,1.54510173,113020.0,113010.0,0.29599022]
[1757059569770,1.54510173,113020.0,113010.0,1.14427022]
[1757059570265,1.55404337,113020.0,113010.0,0.88642]
[1757059570477,1.54510173,113020.0,113010.0,1.14427022]
[1757059570969,1.54510173,113020.0,113010.0,0.29599022]
[1757059570970,1.80295195,113020.0,113010.0,0.29599022]
[1757059571561,2.16375195,113020.0,113010.0,0.29599022]
[1757059572069,1.91466314,113020.0,113010.0,0.29599022]
[1757059572272,1.81171336,113020.0,113010.0,0.29599022]
[1757059572457,1.80295195,113020.0,113010.0,0.29599022]
[1757059573066,1.54510173,113020.0,113010.0,0.29599022]
[1757059573275,1.80295195,113020.0,113010.0,0.29599022]
[1757059574173,2.16375195,113020.0,113010.0,0.29599022]
[1757059578175,1.90590173,113020.0,113010.0,0.29599022]
[1757059578473,2.16375195,113020.0,113010.0,0.29599022]
[1757059581174,2.16375195,113020.0,113010.0,0.03814]
[1757059581375,2.16375195,113020.0,113010.0,0.29599022]
[1757059582467,1.90590173,113020.0,113010.0,0.03814]
[1757059582669,2.16375195,113020.0,113010.0,0.29599022]
[1757059583869,2.16375195,113020.0,113010.0,0.03814]
[1757059584168,2.41375195,113020.0,113000.0,0.01438]
[1757059584365,1.48852022,113010.0,113000.0,0.03766]
[1757059584565,1.48852022,113010.0,113000.0,0.29541022]
[1757059584962,1.48852022,113010.0,112990.0,0.09918]
[1757059584963,1.99637044,113010.0,112990.0,0.09918]
[1757059585166,0.66251326,113000.0,112990.0,0.12246]
[1757059585367,0.66251326,113000.0,112990.0,0.12236]
[1757059585669,0.66151326,113000.0,112990.0,0.12236]
[1757059585870,1.50831326,113000.0,112990.0,0.12236]
[1757059586271,1.50831326,113000.0,112990.0,0.12436]
[1757059587572,1.47964369,113000.0,112990.0,0.12436]
[1757059587774,1.47964369,113000.0,112990.0,0.12236]
[1757059587973,1.47964369,113000.0,112990.0,0.12436]
[1757059588378,1.47964369,113000.0,112990.0,0.12236]
[1757059588974,1.47964369,113000.0,112990.0,0.03756]
[1757059590373,1.47964369,113000.0,112980.0,0.01503]
[1757059590678,1.47974369,113000.0,112980.0,0.01503]
[1757059590882,1.48074369,113000.0,112980.0,0.01503]
[1757059591179,1.48174369,113000.0,112980.0,0.01503]
[1757059591673,1.48074369,113000.0,112980.0,0.01503]
[1757059592274,1.48074369,113000.0,112980.0,0.0001]
[1757059592275,0.61285065,112990.0,112980.0,0.0001]
[1757059592474,0.61688065,112990.0,112970.0,0.37558]
[1757059592678,1.45917065,112980.0,112970.0,0.03806]
[1757059592880,1.45917065,112980.0,112960.0,0.01478]
[1757059593069,0.61285065,112970.0,112960.0,0.03806]
[1757059593275,0.38367,112970.0,112960.0,0.03796]
[1757059594184,0.61085065,112970.0,112950.0,0.01478]
[1757059594385,1.45905065,112960.0,112950.0,0.03806]
[1757059594580,0.38367,112960.0,112950.0,0.02328]
[1757059594884,1.39945065,112960.0,112950.0,0.14835234]
[1757059595285,1.39945065,112960.0,112950.0,0.15235234]
[1757059595475,1.39745065,112960.0,112950.0,0.15235234]
[1757059596086,0.67876422,112960.0,112950.0,0.15235234]
[1757059596275,1.52488422,112960.0,112950.0,0.15535234]
[1757059596583,1.52488422,112960.0,112950.0,0.04496]
[1757059597085,1.29570357,112960.0,112950.0,0.04496]
[1757059597394,1.29566357,112960.0,112950.0,0.04296]
[1757059597574,0.44958357,112960.0,112950.0,0.27214065]
[1757059597773,0.92618357,112960.0,112950.0,0.27214065]
[1757059598380,0.93982357,112960.0,112950.0,0.27214065]
[1757059599085,0.93982357,112960.0,112950.0,0.04296]
[1757059599274,0.02287,112960.0,112950.0,0.27214065]
[1757059599470,0.78140477,112970.0,112960.0,0.03796]
[1757059599681,0.78130477,112970.0,112960.0,0.26714065]
[1757059599984,0.88914477,112970.0,112960.0,0.03796]
[1757059600184,0.04318477,112970.0,112960.0,0.03796]
[1757059600391,0.88910477,112970.0,112960.0,0.03796]
[1757059600885,0.95928451,112970.0,112960.0,0.03896]
[1757059601586,0.11336451,112970.0,112960.0,0.03896]
[1757059601781,0.95932451,112970.0,112960.0,0.03896]
[1757059602575,0.89014477,112970.0,112960.0,0.03896]
[1757059603987,1.49038542,112970.0,112960.0,0.001]
[1757059604900,1.49010542,112970.0,112960.0,0.001]
[1757059605084,1.56029768,112970.0,112960.0,0.001]
[1757059607284,1.81029768,112970.0,112960.0,0.001]
[1757059609897,0.96461768,112970.0,112960.0,0.001]
[1757059610084,1.81001768,112970.0,112960.0,0.001]
[1757059610781,1.80993768,112970.0,112960.0,0.001]
[1757059610976,1.83346752,112970.0,112960.0,0.001]
[1757059612181,1.83346752,112970.0,112950.0,0.0001]
[1757059612385,0.60973065,112960.0,112950.0,0.0001]
[1757059612587,0.60973065,112960.0,112940.0,0.0001]
[1757059612792,1.45493065,112950.0,112940.0,0.0001]
[1757059612987,1.45493065,112950.0,112930.0,0.03236691]
[1757059613187,1.45503065,112950.0,112940.0,0.023]
[1757059613382,1.45493065,112950.0,112940.0,0.023]
[1757059614192,1.45493065,112950.0,112930.0,0.03236691]
[1757059614393,1.45503065,112950.0,112930.0,0.03236691]
[1757059614783,1.45603065,112950.0,112930.0,0.03236691]
[1757059615683,1.45603065,112950.0,112930.0,0.01478]
[1757059615684,0.22918065,112940.0,112930.0,0.01478]
[1757059615894,0.60973065,112940.0,112920.0,0.01498]
[1757059616089,1.22555,112930.0,112920.0,0.03798]
[1757059616283,1.22555,112930.0,112920.0,0.03788]
[1757059616688,1.22551,112930.0,112920.0,0.03788]
[1757059616987,1.22551,112930.0,112920.0,0.03888]
[1757059617995,1.23428904,112930.0,112920.0,0.03888]
[1757059619790,1.23428904,112930.0,112920.0,0.03988]
[1757059621302,1.25785432,112930.0,112920.0,0.03988]
[1757059622102,1.23428904,112930.0,112920.0,0.03988]
[1757059622400,0.88796193,112930.0,112920.0,0.26906065]
[1757059622999,0.86439,112930.0,112920.0,0.26906065]
[1757059623197,0.04332366,112930.0,112920.0,0.26906065]
[1757059623391,0.88796366,112930.0,112920.0,0.26906065]
[1757059623592,0.04332366,112930.0,112920.0,0.26906065]
[1757059623902,0.04332366,112930.0,112920.0,0.51906065]
[1757059624692,0.02357366,112930.0,112920.0,0.96840515]
[1757059624900,0.01985,112940.0,112930.0,0.01488]
[1757059625097,0.86423,112940.0,112930.0,0.26706065]
[1757059625301,0.88780473,112940.0,112930.0,0.26706065]
[1757059625997,0.88780473,112940.0,112930.0,0.03788]
[1757059629003,1.11698538,112940.0,112930.0,0.03788]
[1757059629304,1.47782538,112940.0,112920.0,0.01498]
[1757059629498,0.38055,112930.0,112920.0,0.03798]
[1757059629696,0.38055,112930.0,112920.0,0.03788]
[1757059630207,0.01975,112930.0,112920.0,0.03788]
[1757059630506,0.01975,112930.0,112920.0,0.26706065]
[1757059630709,0.01989,112940.0,112930.0,0.03788]
[1757059630910,0.88746492,112940.0,112930.0,0.03788]
[1757059631100,0.88746492,112940.0,112930.0,0.26706065]
[1757059631608,0.88742492,112940.0,112930.0,0.26706065]
[1757059632006,0.88742492,112940.0,112930.0,0.03788]
[1757059632206,0.88742492,112940.0,112930.0,0.26706065]
[1757059632409,0.88742492,112940.0,112930.0,0.03788]
[1757059633308,0.88742492,112940.0,112930.0,0.39868]
[1757059633498,0.88742492,112940.0,112930.0,0.03788]
[1757059633698,0.04338492,112940.0,112930.0,0.03788]
[1757059633894,0.88726492,112940.0,112930.0,0.03788]
[1757059634917,0.04338492,112940.0,112930.0,0.03788]
[1757059635206,0.88722492,112940.0,112930.0,0.03788]
[1757059635806,0.86739492,112940.0,112930.0,0.03788]
[1757059636013,0.02363492,112940.0,112930.0,0.35559725]
[1757059636310,0.02363492,112940.0,112930.0,0.96639725]
[1757059636511,4e-05,112940.0,112930.0,0.96639725]
[1757059637109,4e-05,112940.0,112930.0,0.7372166]
[1757059637307,4e-05,112940.0,112930.0,0.96639725]
[1757059639214,0.01776,112940.0,112930.0,0.71639725]
[1757059639806,4e-05,112940.0,112930.0,0.71639725]
[1757059640111,4e-05,112940.0,112930.0,0.62786065]
[1757059640599,0.01776,112940.0,112930.0,0.62786065]
[1757059641416,0.01776,112940.0,112930.0,0.39868]
[1757059644297,0.01776,112940.0,112930.0,0.62786065]
[1757059645105,0.01776,112940.0,112930.0,0.95786065]
[1757059645305,0.01776,112940.0,112930.0,0.44868]
[1757059647009,0.01776,112940.0,112930.0,0.5372166]
[1757059649304,0.01776,112940.0,112930.0,1.02639725]
[1757059649504,0.01776,112940.0,112930.0,1.05523912]
[1757059650105,4e-05,112940.0,112930.0,1.05523912]
[1757059650308,4e-05,112940.0,112930.0,2.14799912]
[1757059651210,4e-05,112940.0,112930.0,2.23279912]
[1757059652314,4e-05,112940.0,112930.0,2.23379912]
[1757059652907,4e-05,112940.0,112930.0,2.23279912]
[1757059657310,4e-05,112940.0,112930.0,2.23379912]
[1757059657509,4e-05,112940.0,112930.0,1.98339912]
[1757059658116,4e-05,112940.0,112930.0,1.98239912]
[1757059659513,4e-05,112940.0,112930.0,1.14003912]
[1757059659903,4e-05,112940.0,112930.0,1.98211912]
[1757059660917,4e-05,112940.0,112930.0,1.14003912]
[1757059661118,4e-05,112940.0,112930.0,1.98203912]
[1757059662916,4e-05,112940.0,112930.0,1.14003912]
[1757059663222,4e-05,112940.0,112930.0,1.98191912]
[1757059664219,4e-05,112940.0,112930.0,1.7238966]
[1757059664420,4e-05,112940.0,112930.0,1.98191912]
[1757059665516,4e-05,112940.0,112930.0,0.8820166]
[1757059665820,4e-05,112940.0,112930.0,1.98171912]
[1757059666712,4e-05,112940.0,112930.0,0.8820166]
[1757059667017,4e-05,112940.0,112930.0,1.14003912]
[1757059667218,0.25806252,112940.0,112930.0,1.98163912]
[1757059667519,4e-05,112940.0,112930.0,1.98163912]
[1757059667922,4e-05,112940.0,112930.0,1.14003912]
[1757059668221,4e-05,112940.0,112930.0,2.02163912]
[1757059668416,4e-05,112940.0,112930.0,1.09150252]
[1757059668618,4e-05,112940.0,112930.0,2.02151912]
[1757059669014,4e-05,112940.0,112930.0,1.93671912]
[1757059670725,4e-05,112940.0,112930.0,1.92671912]
[1757059671024,4e-05,112940.0,112930.0,1.71671912]
[1757059671224,4e-05,112940.0,112930.0,1.90671912]
[1757059672727,4e-05,112940.0,112930.0,1.67671912]
[1757059672926,4e-05,112940.0,112930.0,1.91671912]
[1757059673826,4e-05,112940.0,112930.0,0.5872166]
[1757059674029,0.01575,112940.0,112930.0,1.65639912]
[1757059674327,0.27377252,112940.0,112930.0,0.70443912]
[1757059674522,0.27377252,112940.0,112930.0,0.45443912]
[1757059677423,0.27377252,112940.0,112930.0,0.1964166]
[1757059677627,0.27377252,112940.0,112930.0,0.45443912]
[1757059679721,0.27377252,112940.0,112930.0,0.1964166]
[1757059680025,0.27377252,112940.0,112930.0,0.45443912]
[1757059682933,1.72513252,112940.0,112920.0,0.01498]
[1757059683119,1.72513252,112940.0,112920.0,0.03825]
[1757059683120,0.27373252,112930.0,112920.0,0.03825]
[1757059683431,0.63453252,112930.0,112920.0,0.04233]
[1757059684227,0.88453252,112930.0,112920.0,0.00518]
[1757059684428,0.88453252,112930.0,112920.0,0.00618]
[1757059684828,0.88453252,112930.0,112920.0,0.00518]
[1757059685028,0.88453252,112930.0,112920.0,0.00618]
[1757059685730,1.72489252,112930.0,112920.0,0.00618]
[1757059686130,0.88453252,112930.0,112920.0,0.02945]
[1757059686324,1.72485252,112930.0,112920.0,0.04379]
[1757059686632,0.63453252,112930.0,112920.0,0.30181252]
[1757059686932,0.63453252,112930.0,112920.0,0.04379]
[1757059688634,0.63453252,112930.0,112920.0,0.30181252]
[1757059688831,1.47477252,112930.0,112920.0,0.30181252]
[1757059689024,1.47477252,112930.0,112920.0,0.04379]
[1757059690132,0.63453252,112930.0,112920.0,0.04379]
[1757059690332,1.47473252,112930.0,112920.0,0.04379]
[1757059691434,1.47457252,112930.0,112920.0,0.04379]
[1757059691636,0.63453252,112930.0,112920.0,0.04379]
[1757059691836,1.47457252,112930.0,112920.0,0.04379]
[1757059692338,0.63453252,112930.0,112920.0,0.04379]
[1757059692532,1.47449252,112930.0,112920.0,0.04379]
[1757059694941,1.21647,112930.0,112920.0,0.04379]
[1757059695132,1.47449252,112930.0,112920.0,0.04379]
[1757059698229,1.21627,112930.0,112920.0,0.30181252]
[1757059698429,1.47429252,112930.0,112920.0,0.04379]
[1757059698628,1.47429252,112930.0,112920.0,0.1323345]
[1757059698835,1.47417252,112930.0,112920.0,0.39035702]
[1757059699032,0.63453252,112930.0,112920.0,0.39035702]
[1757059699232,1.47413252,112930.0,112920.0,0.39035702]
[1757059699444,0.27373252,112930.0,112920.0,0.7423345]
[1757059699634,1.11329252,112930.0,112920.0,0.64035702]
[1757059700031,1.11329252,112930.0,112920.0,0.29379]
[1757059700232,1.11329252,112930.0,112920.0,0.04379]
[1757059700233,1.47409252,112930.0,112920.0,0.04379]
[1757059706444,0.63453252,112930.0,112920.0,0.04379]
[1757059706748,1.47369252,112930.0,112920.0,0.04379]
[1757059707544,1.47365252,112930.0,112920.0,0.04379]
[1757059707944,0.63453252,112930.0,112920.0,0.04379]
[1757059708137,1.47361252,112930.0,112920.0,0.04379]
[1757059708336,0.37428,112940.0,112930.0,0.1244566]
[1757059708534,0.85238,112940.0,112930.0,0.38247912]
[1757059708745,1.11040252,112940.0,112930.0,0.38247912]
[1757059708935,1.11040252,112940.0,112930.0,0.29394252]
[1757059709746,1.11040252,112940.0,112930.0,0.29812252]
[1757059710746,1.11040252,112940.0,112930.0,0.0401]
[1757059711443,0.85238,112940.0,112930.0,0.0401]
[1757059711847,1.08176876,112940.0,112930.0,0.0401]
[1757059712547,0.85238,112940.0,112930.0,0.0401]
[1757059714343,1.44256876,112940.0,112930.0,0.0401]
[1757059714547,1.69256876,112940.0,112930.0,0.0401]
[1757059714743,1.69256876,112940.0,112930.0,0.01791]
[1757059716845,1.46318,112940.0,112930.0,0.01791]
[1757059717152,1.69256876,112940.0,112930.0,0.01791]
[1757059718152,1.69256876,112940.0,112920.0,0.05422445]
[1757059718153,10.00541,112930.0,112920.0,0.05422445]
[1757059718342,10.36621,112930.0,112920.0,0.05412445]
[1757059718543,10.59559876,112930.0,112920.0,0.05412445]
[1757059719658,10.59559876,112930.0,112920.0,0.05612445]
[1757059721054,10.36621,112930.0,112920.0,0.05612445]
[1757059723752,10.36621,112930.0,112920.0,0.05512445]
[1757059723957,10.36821,112930.0,112920.0,0.05412445]
[1757059725660,11.20625,112930.0,112920.0,0.05412445]
[1757059728861,11.20601,112930.0,112920.0,0.05412445]
[1757059729759,10.36821,112930.0,112920.0,0.05412445]
[1757059730063,10.84513,112930.0,112920.0,0.05412445]
[1757059732565,11.20593,112930.0,112920.0,0.05412445]
[1757059733864,10.36821,112930.0,112920.0,0.05412445]
[1757059734066,11.20577,112930.0,112920.0,0.05412445]
[1757059734564,10.59759876,112930.0,112920.0,0.05412445]
[1757059734864,11.20569,112930.0,112920.0,0.05412445]
[1757059735063,11.43507876,112930.0,112920.0,0.05412445]
[1757059735261,11.43507876,112930.0,112920.0,0.03653]
[1757059735469,11.43507876,112930.0,112910.0,0.00452]
[1757059735470,0.02997,112920.0,112910.0,0.00452]
[1757059735661,0.97587977,112920.0,112910.0,0.00442]
[1757059736358,0.97587977,112920.0,112900.0,0.01498]
[1757059736557,1.44961876,112910.0,112900.0,0.03734]
[1757059736860,1.44961876,112910.0,112900.0,0.03724]
[1757059737666,1.44961876,112910.0,112900.0,0.03824]
[1757059737968,1.08877876,112910.0,112900.0,0.03824]
[1757059738263,0.25141876,112910.0,112900.0,0.39924]
[1757059738461,0.02203,112910.0,112900.0,0.1278001]
[1757059738655,0.02203,112910.0,112900.0,1.33798886]
[1757059738861,11.55802101,112920.0,112910.0,0.03547]
[1757059739064,10.38541592,112920.0,112910.0,0.39547]
[1757059739361,9.98209,112920.0,112910.0,1.0948223]
[1757059739659,9.98209,112920.0,112910.0,1.28421106]
[1757059740267,9.98209,112920.0,112910.0,0.7348223]
[1757059740458,10.00412,112920.0,112910.0,0.7348223]
[1757059741358,10.00412,112920.0,112910.0,0.4848223]
[1757059743270,10.00412,112920.0,112910.0,0.03547]
[1757059743664,9.23468681,112900.0,112890.0,1.30953025]
[1757059743860,9.23468681,112900.0,112890.0,1.94748701]
[1757059744463,9.23468681,112900.0,112890.0,0.88105825]
[1757059744667,9.32324701,112900.0,112890.0,0.44531]
[1757059744968,9.70607701,112900.0,112890.0,0.44531]
[1757059745171,9.70607701,112900.0,112890.0,0.44731]
[1757059745466,9.70607701,112900.0,112890.0,0.535878]
[1757059745877,9.70607701,112900.0,112890.0,0.537878]
[1757059746171,9.71977701,112900.0,112890.0,0.35078]
[1757059746970,9.71977701,112900.0,112890.0,0.439348]
[1757059747671,9.71977701,112900.0,112890.0,0.35078]
[1757059748074,10.55657701,112900.0,112890.0,0.439348]
[1757059748468,10.55657701,112900.0,112890.0,0.452458]
[1757059748972,9.71977701,112900.0,112890.0,0.452458]
[1757059749174,10.55653701,112900.0,112890.0,0.452458]
[1757059750169,10.55653701,112900.0,112890.0,0.439348]
[1757059750363,10.55653701,112900.0,112890.0,0.35078]
[1757059750364,10.78592577,112900.0,112890.0,0.35078]
[1757059750571,10.78592577,112900.0,112890.0,0.08078]
[1757059751172,11.03592577,112900.0,112890.0,0.00842]
[1757059751375,10.80653701,112900.0,112890.0,0.00842]
[1757059751568,11.03592577,112900.0,112890.0,0.00642]
[1757059751967,11.03692577,112900.0,112890.0,0.00642]
[1757059752369,11.03692577,112900.0,112890.0,0.00442]
[1757059752570,0.03573,112880.0,112870.0,0.13275234]
[1757059752769,1.46251876,112880.0,112870.0,0.49275234]
[1757059753268,2.31155852,112880.0,112870.0,0.47039234]
[1757059753467,0.03573,112870.0,112860.0,0.13275234]
[1757059753677,1.23305,112870.0,112860.0,0.57445384]
[1757059753879,1.21935,112870.0,112860.0,0.4640615]
[1757059754067,1.21835,112870.0,112860.0,0.4640615]
[1757059754469,0.38183,112870.0,112860.0,0.4417015]
[1757059754673,8.75651531,112850.0,112840.0,1.4273127]
[1757059754876,8.75651531,112850.0,112840.0,1.7873127]
[1757059755079,8.75651531,112850.0,112840.0,1.67692036]
[1757059755277,8.75551531,112850.0,112840.0,1.67692036]
[1757059755676,8.75451531,112850.0,112840.0,1.67692036]
[1757059755876,8.75451531,112850.0,112840.0,1.9151725]
[1757059756079,8.75451531,112850.0,112840.0,1.9191725]
[1757059756578,8.75451531,112850.0,112840.0,1.99172799]
[1757059757176,8.62185541,112850.0,112840.0,2.55891675]
[1757059757380,8.61783541,112850.0,112840.0,2.69120954]
[1757059757674,8.61783541,112850.0,112840.0,1.85464954]
[1757059757878,8.61783541,112850.0,112840.0,2.21166078]
[1757059758877,8.61783541,112850.0,112840.0,1.37526078]
[1757059759075,8.61783541,112850.0,112840.0,2.21166078]
[1757059759472,8.61783541,112850.0,112840.0,2.44104954]
[1757059759872,8.61783541,112850.0,112840.0,1.98227202]
[1757059760174,8.61783541,112850.0,112840.0,2.21166078]
[1757059760381,8.61783541,112850.0,112840.0,2.21158078]
[1757059761382,8.61783541,112850.0,112840.0,1.37526078]
[1757059761573,8.61783541,112850.0,112840.0,2.21150078]
[1757059762174,8.61787541,112850.0,112840.0,2.21150078]
[1757059762380,8.61787541,112850.0,112840.0,1.37526078]
[1757059762682,8.61787541,112850.0,112840.0,2.21150078]
[1757059763083,8.61787541,112850.0,112840.0,2.21146078]
[1757059763482,8.61787541,112850.0,112840.0,1.37526078]
[1757059763883,8.61787541,112850.0,112840.0,2.21142078]
[1757059765286,8.61787541,112850.0,112840.0,1.37526078]
[1757059765485,8.63204541,112850.0,112840.0,2.06593799]
[1757059765981,8.63204541,112850.0,112840.0,1.83654923]
[1757059766180,8.63204541,112850.0,112840.0,2.06593799]
[1757059766781,8.63204541,112850.0,112840.0,1.22985799]
[1757059766985,8.63204541,112850.0,112840.0,2.06593799]
[1757059768385,8.63204541,112850.0,112840.0,1.83654923]
[1757059769084,8.63204541,112850.0,112840.0,2.06593799]
[1757059769992,8.61728541,112850.0,112840.0,2.76708059]
[1757059770182,8.61728541,112850.0,112840.0,3.29708059]
[1757059771283,8.61728541,112850.0,112840.0,5.00928059]
[1757059771482,8.61728541,112850.0,112840.0,5.06700135]
[1757059772088,8.50060161,112850.0,112840.0,4.98220135]
[1757059772489,8.50060161,112850.0,112840.0,5.06700135]
[1757059773190,8.50060161,112850.0,112840.0,4.23092135]
[1757059773489,8.50060161,112850.0,112840.0,5.06664135]
[1757059773689,8.40784731,112850.0,112840.0,5.06664135]
[1757059773888,8.31900091,112850.0,112840.0,5.06664135]
[1757059774490,8.31900091,112850.0,112840.0,4.81660135]
[1757059774890,8.31900091,112850.0,112840.0,5.06660135]
[1757059775292,7.233964,112850.0,112840.0,5.06660135]
[1757059775484,6.8335705,112850.0,112840.0,5.41258369]
[1757059775684,6.5476675,112850.0,112840.0,5.41258369]
[1757059775887,6.1091897,112850.0,112840.0,5.41258369]
[1757059776086,5.31911435,112850.0,112840.0,5.41258369]
[1757059776286,5.14108015,112850.0,112840.0,5.41258369]
[1757059776594,4.77310175,112850.0,112840.0,5.41258369]
[1757059776795,4.49787885,112850.0,112840.0,5.41258369]
[1757059776982,4.36490005,112850.0,112840.0,5.41258369]
[1757059777186,4.25819795,112850.0,112840.0,5.41258369]
[1757059777389,4.25819795,112850.0,112840.0,5.41238369]
[1757059777587,4.25819795,112850.0,112840.0,5.30199135]
[1757059777792,4.11063745,112850.0,112840.0,5.30199135]
[1757059778082,3.91197055,112850.0,112840.0,5.30199135]
[1757059778597,3.82880005,112850.0,112840.0,5.30199135]
[1757059778799,3.67519695,112850.0,112840.0,5.30199135]
[1757059779005,3.63012525,112850.0,112840.0,4.21651135]
[1757059779195,3.63012525,112850.0,112840.0,5.05191135]
[1757059781202,3.63012525,112850.0,112840.0,4.21651135]
[1757059781399,3.63012525,112850.0,112840.0,5.05179135]
[1757059781699,3.63012525,112850.0,112840.0,5.49249135]
[1757059783998,3.63012525,112850.0,112840.0,4.14071307]
[1757059784188,3.63012525,112850.0,112840.0,5.34520034]
[1757059784593,3.63012525,112850.0,112840.0,5.23408221]
[1757059785006,3.62248525,112850.0,112840.0,5.23408221]
[1757059785199,3.60106525,112850.0,112840.0,5.23408221]
[1757059785401,3.60106525,112850.0,112840.0,5.34520034]
[1757059785799,3.60106525,112850.0,112840.0,5.23408221]
[1757059787404,3.60106525,112850.0,112840.0,5.49233135]
[1757059787605,3.60106525,112850.0,112840.0,5.23408221]
[1757059787796,3.60106525,112850.0,112840.0,4.79338221]
[1757059787990,3.60106525,112850.0,112840.0,4.90450034]
[1757059792004,3.60106525,112850.0,112840.0,4.79338221]
[1757059794207,3.60106525,112850.0,112840.0,5.05163135]
[1757059794901,3.60106525,112850.0,112840.0,4.79338221]
[1757059796114,3.60106525,112850.0,112840.0,3.33967221]
[1757059796409,3.60106525,112850.0,112840.0,4.33431221]